bitfinex/quotes_BTCUSD_20241009
["timestamp","ask_amount","ask_price","bid_price","bid_amount"]
[1728501338283,0.001636,61072.0,61071.0,0.33458064]
[1728501338513,0.001636,61072.0,61071.0,0.33858064]
[1728501338742,0.001636,61072.0,61071.0,0.30851092]
[1728501339171,0.001636,61072.0,61071.0,0.32251092]
[1728501339403,0.001636,61072.0,61071.0,0.33074648]
[1728501340217,0.001636,61072.0,61071.0,0.43074648]
[1728501340646,0.001636,61072.0,61071.0,0.26990884]
[1728501340854,0.001636,61072.0,61071.0,0.13623556]
[1728501341088,0.01195129,61072.0,61071.0,0.29997856]
[1728501341279,0.001636,61072.0,61071.0,0.29997856]
[1728501341484,0.0119443,61072.0,61071.0,0.29997856]
[1728501341692,0.001636,61072.0,61071.0,0.29997856]
[1728501341898,0.0119443,61072.0,61071.0,0.29997856]
[1728501342110,0.001636,61072.0,61071.0,0.28597856]
[1728501342328,0.0119443,61072.0,61071.0,0.29997856]
[1728501342546,0.001636,61072.0,61071.0,0.29997856]
[1728501342756,0.0119443,61072.0,61071.0,0.29997856]
[1728501342987,0.001636,61072.0,61071.0,0.27197856]
[1728501343211,0.0119443,61072.0,61071.0,0.13623556]
[1728501343427,0.079836,61072.0,61071.0,0.13623556]
[1728501343654,0.0901443,61072.0,61071.0,0.29997856]
[1728501344061,0.0119443,61072.0,61071.0,0.65241946]
[1728501344492,0.001636,61072.0,61071.0,0.97121946]
[1728501344700,0.001636,61072.0,61071.0,0.98516346]
[1728501345127,0.001636,61072.0,61071.0,1.69255646]
[1728501345340,0.001636,61072.0,61071.0,1.35360746]
[1728501345551,0.001636,61072.0,61071.0,1.18722746]
[1728501345765,0.001636,61072.0,61071.0,0.96916346]
[1728501346426,0.001636,61072.0,61071.0,0.98316346]
[1728501347947,0.001636,61072.0,61071.0,0.99368866]
[1728501348954,0.22777427,61080.0,61079.0,0.263722]
[1728501349154,0.22777427,61080.0,61079.0,0.42455964]
[1728501349363,0.001636,61086.0,61084.0,0.163707]
[1728501349557,0.001636,61086.0,61073.0,0.19660326]
[1728501349558,0.0781,61085.0,61072.0,0.1]
[1728501349760,0.327419,61084.0,61076.0,0.327456]
[1728501350013,0.163715,61082.0,61079.0,0.16372]
[1728501350207,0.0781,61085.0,61079.0,0.327444]
[1728501350440,0.0781,61085.0,61082.0,0.163712]
[1728501350652,0.0781,61085.0,61077.0,0.327452]
[1728501350653,0.001636,61086.0,61085.0,0.163706]
[1728501350768,0.001636,61086.0,61085.0,0.32781728]
[1728501350975,0.001636,61086.0,61085.0,0.32454364]
[1728501352405,0.001636,61086.0,61085.0,0.33754364]
[1728501352614,0.001636,61086.0,61085.0,0.013]
[1728501352838,0.001636,61086.0,61085.0,0.163706]
[1728501353456,0.001636,61086.0,61085.0,0.189706]
[1728501353921,0.001636,61086.0,61085.0,0.33654364]
[1728501354316,0.001636,61086.0,61085.0,0.34854364]
[1728501364632,0.001636,61086.0,61085.0,0.47654364]
[1728501365338,0.001636,61086.0,61085.0,0.46454364]
[1728501365564,0.002,61097.0,61096.0,0.163676]
[1728501365796,0.002,61097.0,61096.0,0.37827926]
[1728501366097,0.0094458,61097.0,61096.0,0.47827926]
[1728501366309,0.077638,61106.0,61103.0,0.286658]
[1728501366310,0.001638,61106.0,61103.0,0.286658]
[1728501366593,0.001638,61106.0,61104.0,0.286655]
[1728501366796,0.001638,61106.0,61104.0,0.45576508]
[1728501367053,0.001638,61106.0,61104.0,0.45249264]
[1728501367541,0.001638,61106.0,61104.0,0.48531264]
[1728501368489,0.001638,61106.0,61104.0,0.68361264]
[1728501368962,0.001638,61106.0,61105.0,0.324472]
[1728501369244,0.001638,61106.0,61105.0,0.48530964]
[1728501369486,0.006636,61116.0,61113.0,0.005]
[1728501369730,0.24522827,61118.0,61117.0,0.16862]
[1728501369951,0.24522827,61118.0,61117.0,1.9129609]
[1728501370169,0.001636,61120.0,61119.0,0.291615]
[1728501370399,0.001636,61120.0,61119.0,0.45245264]
[1728501370626,0.001636,61120.0,61119.0,0.96381564]
[1728501370837,0.001636,61120.0,61119.0,2.21512864]
[1728501371056,0.001636,61120.0,61119.0,2.24794864]
[1728501371284,0.001636,61120.0,61119.0,2.25842489]
[1728501371769,0.001636,61120.0,61119.0,1.76464889]
[1728501371990,0.001636,61120.0,61119.0,3.68400838]
[1728501372239,0.001638,61128.0,61127.0,0.007]
[1728501372462,0.001638,61128.0,61127.0,0.6460339]
[1728501372981,0.001638,61128.0,61127.0,0.6440339]
[1728501373382,0.001638,61128.0,61127.0,0.6580339]
[1728501373607,0.001638,61128.0,61127.0,0.8319139]
[1728501374038,0.001638,61128.0,61127.0,0.8339139]
[1728501374311,0.24522827,61138.0,61133.0,0.165577]
[1728501374497,0.24522827,61138.0,61135.0,0.293572]
[1728501374710,0.24522827,61138.0,61135.0,0.45768037]
[1728501374928,0.005,61143.0,61135.0,0.45440964]
[1728501375589,0.005,61143.0,61135.0,0.45240964]
[1728501376269,0.005,61143.0,61135.0,0.44740964]
[1728501376474,0.005,61143.0,61135.0,0.46140964]
[1728501376705,0.005,61143.0,61135.0,0.44740964]
[1728501376933,0.005,61143.0,61135.0,0.27134495]
[1728501376934,0.0944,61136.0,61135.0,0.27134495]
[1728501377154,0.257969,61136.0,61135.0,0.18883764]
[1728501377412,0.257969,61136.0,61135.0,0.028]
[1728501377645,0.257969,61136.0,61135.0,0.014]
[1728501378297,0.257969,61136.0,61135.0,0.026]
[1728501378544,0.0944,61136.0,61135.0,0.012]
[1728501378779,0.0944,61136.0,61129.0,0.24522827]
[1728501378780,0.163576,61134.0,61129.0,0.24522827]
[1728501379008,0.163576,61134.0,61130.0,0.16083764]
[1728501379571,0.163583,61131.0,61130.0,0.16083764]
[1728501379759,0.0944,61136.0,61127.0,0.00807396]
[1728501379760,0.0944,61136.0,61127.0,0.17166596]
[1728501379979,0.257969,61136.0,61135.0,0.001]
[1728501380452,0.163583,61131.0,61128.0,0.16083764]
[1728501380689,0.327159,61133.0,61128.0,0.16083764]
[1728501380690,0.163586,61130.0,61128.0,0.16083764]
[1728501381155,0.163586,61130.0,61129.0,0.006]
[1728501381413,0.163575,61134.0,61129.0,0.006]
[1728501381649,0.0944,61136.0,61129.0,0.006]
[1728501381860,0.163585,61130.0,61129.0,0.006]
[1728501382291,0.163585,61130.0,61128.0,0.16083764]
[1728501382731,0.32715,61134.0,61128.0,0.33324364]
[1728501382964,0.163581,61132.0,61128.0,0.32524364]
[1728501383176,0.327148,61135.0,61128.0,0.16965464]
[1728501383401,0.163578,61133.0,61129.0,0.169588]
[1728501383624,0.327148,61135.0,61128.0,0.16165464]
[1728501383879,0.163582,61132.0,61128.0,0.32924364]
[1728501384089,0.163577,61133.0,61129.0,0.163586]
[1728501384803,0.327156,61133.0,61128.0,0.16665464]
[1728501385037,0.327148,61135.0,61128.0,0.16665464]
[1728501385252,0.096034,61136.0,61129.0,0.163587]
[1728501385253,0.163577,61133.0,61129.0,0.163587]
[1728501385486,0.163574,61135.0,61130.0,0.16083764]
[1728501385697,0.096034,61136.0,61133.0,0.163576]
[1728501385927,0.096034,61136.0,61133.0,0.163577]
[1728501386151,0.096034,61136.0,61134.0,0.163574]
[1728501386378,0.096034,61136.0,61135.0,0.32440964]
[1728501387739,0.096034,61136.0,61135.0,0.33240964]
[1728501388193,0.096034,61136.0,61135.0,0.16883764]
[1728501388425,0.096034,61136.0,61135.0,0.17683764]
[1728501389722,0.096034,61136.0,61135.0,0.016]
[1728501389723,0.259603,61136.0,61135.0,0.016]
[1728501389967,0.096034,61136.0,61135.0,0.016]
[1728501390595,0.259603,61136.0,61135.0,0.016]
[1728501390813,0.242903,61136.0,61135.0,0.016]
[1728501391879,0.079334,61136.0,61135.0,0.17683764]
[1728501392790,0.242903,61136.0,61135.0,0.17683764]
[1728501393012,0.079334,61136.0,61135.0,0.17683764]
[1728501393678,0.242903,61136.0,61135.0,0.016]
[1728501393907,0.431103,61136.0,61135.0,0.016]
[1728501394356,0.55742041,61136.0,61135.0,0.016]
[1728501394606,0.163588,61129.0,61128.0,0.000817]
[1728501394868,0.7182949,61129.0,61128.0,0.000817]
[1728501396608,0.7192949,61129.0,61128.0,0.001817]
[1728501397056,0.7282949,61129.0,61128.0,0.002817]
[1728501397472,0.0894,61129.0,61128.0,0.002817]
[1728501397692,0.0894,61129.0,61128.0,0.32724564]
[1728501397693,0.01,61129.0,61128.0,0.32724564]
[1728501398578,0.009,61129.0,61128.0,0.34924564]
[1728501398834,0.009,61129.0,61128.0,0.35124564]
[1728501399058,0.001634,61136.0,61135.0,0.163572]
[1728501399278,0.001634,61136.0,61135.0,0.32440964]
[1728501400616,0.002634,61136.0,61135.0,0.33140964]
[1728501400818,0.166203,61136.0,61135.0,0.007]
[1728501401036,0.166203,61136.0,61135.0,0.011]
[1728501402478,0.166203,61136.0,61135.0,0.007]
[1728501402654,0.166203,61136.0,61135.0,0.009]
[1728501402866,0.166203,61136.0,61135.0,0.02]
[1728501403083,0.001634,61136.0,61135.0,0.17183764]
[1728501403295,0.002634,61136.0,61135.0,0.33440964]
[1728501403523,0.002634,61136.0,61135.0,0.34240964]
[1728501405457,0.002634,61136.0,61135.0,0.17883764]
[1728501406843,0.166203,61136.0,61135.0,0.17883764]
[1728501407536,0.166203,61136.0,61135.0,0.018]
[1728501408955,0.247603,61136.0,61135.0,0.018]
[1728501410365,0.38566919,61136.0,61135.0,0.018]
[1728501410591,1.07687347,61136.0,61135.0,0.018]
[1728501410833,0.270572,61135.0,61134.0,0.000817]
[1728501411075,0.170588,61129.0,61128.0,0.000817]
[1728501411338,0.6384804,61129.0,61128.0,0.000817]
[1728501412243,0.82799228,61129.0,61128.0,0.000817]
[1728501412459,0.47064276,61129.0,61128.0,0.000817]
[1728501412912,0.420188,61129.0,61128.0,0.000817]
[1728501413147,0.433188,61129.0,61128.0,0.001817]
[1728501413619,0.422188,61129.0,61128.0,0.001817]
[1728501413836,0.420188,61129.0,61128.0,0.000817]
[1728501414053,0.47860732,61129.0,61128.0,0.000817]
[1728501414296,0.428188,61129.0,61128.0,0.000817]
[1728501414775,0.47860041,61129.0,61128.0,0.000817]
[1728501415009,0.80724466,61129.0,61128.0,0.000817]
[1728501415271,0.242831,61113.0,61112.0,0.24522827]
[1728501415764,0.163639,61110.0,61105.0,0.40887827]
[1728501416018,0.327268,61112.0,61106.0,0.16083764]
[1728501416242,0.163634,61112.0,61108.0,0.163642]
[1728501416477,0.242831,61113.0,61109.0,0.163641]
[1728501416949,0.163628,61115.0,61112.0,0.002]
[1728501417198,0.163628,61115.0,61111.0,0.163635]
[1728501417435,0.001,61112.0,61110.0,0.16083764]
[1728501417786,0.163632,61113.0,61110.0,0.16083764]
[1728501418115,0.32725,61116.0,61110.0,0.16083764]
[1728501418346,0.163628,61115.0,61111.0,0.163635]
[1728501418576,0.001,61112.0,61111.0,0.16083764]
[1728501419035,0.16363,61114.0,61111.0,0.16083764]
[1728501419256,0.001,61116.0,61112.0,0.16083764]
[1728501419497,0.001,61116.0,61115.0,0.163625]
[1728501419752,0.001,61116.0,61115.0,0.32446264]
[1728501419968,0.24522827,61123.0,61118.0,0.327231]
[1728501420204,0.32722,61121.0,61118.0,0.16083764]
[1728501420428,0.163615,61119.0,61118.0,0.16083764]
[1728501420667,0.32723,61119.0,61112.0,0.000817]
[1728501420920,0.327253,61115.0,61113.0,0.16083764]
[1728501421149,0.163631,61113.0,61112.0,0.000817]
[1728501423173,0.163631,61113.0,61112.0,0.003817]
[1728501423388,0.16363,61114.0,61112.0,0.005817]
[1728501423619,0.40885927,61113.0,61112.0,0.005817]
[1728501423854,0.240431,61113.0,61112.0,0.002817]
[1728501424131,0.240431,61113.0,61112.0,0.000817]
[1728501425230,0.240431,61113.0,61112.0,0.002817]
[1728501425734,0.240431,61113.0,61112.0,0.000817]
[1728501425952,0.242431,61113.0,61112.0,0.000817]
[1728501426173,0.246431,61113.0,61112.0,0.000817]
[1728501426381,0.440131,61113.0,61112.0,0.000817]
[1728501426613,0.438131,61113.0,61112.0,0.000817]
[1728501426803,0.443131,61113.0,61112.0,0.001817]
[1728501427015,0.440131,61113.0,61112.0,0.000817]
[1728501427277,0.443131,61113.0,61112.0,0.001817]
[1728501427510,0.244431,61113.0,61112.0,0.000817]
[1728501427961,0.48965927,61113.0,61112.0,0.000817]
[1728501428195,0.244431,61113.0,61112.0,0.000817]
[1728501428423,0.240431,61113.0,61112.0,0.000817]
[1728501428649,0.249431,61113.0,61112.0,0.001817]
[1728501429079,0.253431,61113.0,61112.0,0.002817]
[1728501429297,0.240431,61113.0,61112.0,0.000817]
[1728501429514,0.252431,61113.0,61112.0,0.002817]
[1728501430200,0.254431,61113.0,61112.0,0.002817]
[1728501431349,0.252431,61113.0,61112.0,0.002817]
[1728501432228,0.254431,61113.0,61112.0,0.002817]
[1728501433407,0.81074556,61113.0,61112.0,0.002817]
[1728501433634,0.76121729,61113.0,61112.0,0.002817]
[1728501434098,0.86121729,61113.0,61112.0,0.002817]
[1728501434538,0.91147091,61113.0,61112.0,0.002817]
[1728501434972,0.86121729,61113.0,61112.0,0.002817]
[1728501436790,0.74160659,61113.0,61112.0,0.002817]
[1728501437065,0.57376895,61113.0,61112.0,0.002817]
[1728501437478,0.47376895,61113.0,61112.0,0.002817]
[1728501437716,0.27806895,61113.0,61112.0,0.002817]
[1728501440181,0.252431,61113.0,61112.0,0.002817]
[1728501442004,0.012,61113.0,61112.0,0.16645]
[1728501442272,0.012,61113.0,61112.0,0.32728764]
[1728501442961,0.008,61113.0,61112.0,0.32628764]
[1728501443175,0.008,61113.0,61112.0,0.32928764]
[1728501443427,0.24522827,61120.0,61112.0,0.32928764]
[1728501443428,0.40884227,61120.0,61115.0,0.32725]
[1728501443641,0.40884227,61120.0,61117.0,0.16362]
[1728501443896,0.24522827,61120.0,61118.0,0.163616]
[1728501444114,0.163611,61121.0,61116.0,0.327242]
[1728501444347,0.327198,61125.0,61115.0,0.48808764]
[1728501444550,0.327198,61125.0,61116.0,0.327242]
[1728501444774,0.0824,61126.0,61116.0,0.16083764]
[1728501444996,0.163604,61123.0,61119.0,0.490845]
[1728501445218,0.163603,61124.0,61119.0,0.32445164]
[1728501445434,0.327198,61125.0,61120.0,0.163611]
[1728501445435,0.163605,61123.0,61120.0,0.163611]
[1728501445659,0.163605,61123.0,61120.0,0.163612]
[1728501445883,0.001634,61128.0,61124.0,0.163601]
[1728501445884,0.163593,61127.0,61124.0,0.163601]
[1728501446125,0.165226,61128.0,61124.0,0.1636]
[1728501446417,0.163593,61127.0,61124.0,0.163601]
[1728501446659,0.163596,61126.0,61122.0,0.327212]
[1728501446889,0.163594,61127.0,61123.0,0.327209]
[1728501447114,0.163596,61126.0,61123.0,0.163604]
[1728501447348,0.163594,61127.0,61124.0,0.1636]
[1728501447802,0.328819,61128.0,61123.0,0.163603]
[1728501448013,0.327188,61127.0,61120.0,0.32444864]
[1728501448256,0.163603,61124.0,61121.0,0.163609]
[1728501448530,0.327188,61127.0,61121.0,0.163609]
[1728501448757,0.1636,61125.0,61122.0,0.163606]
[1728501449464,0.3272,61125.0,61120.0,0.32444864]
[1728501449718,0.3272,61125.0,61124.0,0.003]
[1728501449719,0.490799,61125.0,61124.0,0.003]
[1728501449929,0.163623,61116.0,61112.0,0.00907228]
[1728501450153,0.19144238,61126.0,61113.0,0.16083764]
[1728501450382,0.163616,61119.0,61114.0,0.327254]
[1728501450609,0.163616,61119.0,61116.0,0.163622]
[1728501450804,0.163616,61119.0,61116.0,0.32445964]
[1728501451503,0.163612,61120.0,61117.0,0.163618]
[1728501451730,0.001,61119.0,61116.0,0.163623]
[1728501451945,0.001,61119.0,61114.0,0.334252]
[1728501452160,0.001,61119.0,61115.0,0.32446264]
[1728501452389,0.001,61119.0,61114.0,0.334252]
[1728501452390,0.163625,61115.0,61114.0,0.007]
[1728501453083,0.163628,61114.0,61113.0,0.009]
[1728501453757,0.163625,61116.0,61112.0,0.00907228]
[1728501453982,0.163626,61115.0,61114.0,0.000818]
[1728501454236,0.327242,61117.0,61114.0,0.000818]
[1728501454237,0.163623,61116.0,61114.0,0.006818]
[1728501454673,0.327242,61117.0,61114.0,0.006818]
[1728501454674,0.164625,61115.0,61114.0,0.013818]
[1728501455330,0.164625,61115.0,61114.0,0.007818]
[1728501456515,0.163625,61115.0,61114.0,0.000818]
[1728501456949,0.163625,61115.0,61114.0,0.001818]
[1728501457152,0.163625,61115.0,61114.0,0.004818]
[1728501457620,0.163625,61115.0,61114.0,0.001818]
[1728501458087,0.163625,61115.0,61114.0,0.004818]
[1728501463095,0.0814,61119.0,61114.0,0.004818]
[1728501463308,0.245015,61119.0,61116.0,0.163622]
[1728501463554,0.0814,61119.0,61114.0,0.004818]
[1728501463797,0.0814,61119.0,61116.0,0.163622]
[1728501464043,0.0814,61119.0,61114.0,0.001818]
[1728501464290,0.0814,61119.0,61117.0,0.163618]
[1728501464527,0.0814,61119.0,61114.0,0.004818]
[1728501464528,0.163624,61116.0,61114.0,0.004818]
[1728501464763,0.0814,61119.0,61114.0,0.004818]
[1728501464991,0.245016,61119.0,61116.0,0.163622]
[1728501465251,0.245016,61119.0,61114.0,0.33107]
[1728501465252,0.245016,61119.0,61115.0,0.163624]
[1728501465526,0.327208,61124.0,61116.0,0.327245]
[1728501465757,0.02563321,61123.0,61122.0,0.163607]
[1728501465992,0.27086148,61123.0,61122.0,0.163607]
[1728501466226,0.02563321,61123.0,61122.0,0.163607]
[1728501466471,0.163594,61127.0,61123.0,0.163603]
[1728501466708,0.163596,61126.0,61123.0,0.163603]
[1728501466960,0.163596,61126.0,61122.0,0.163606]
[1728501467207,0.001634,61128.0,61118.0,0.327234]
[1728501467441,0.001634,61128.0,61125.0,0.163598]
[1728501467876,0.165226,61128.0,61123.0,0.327208]
[1728501468120,0.001634,61128.0,61126.0,0.163594]
[1728501468346,0.001634,61128.0,61126.0,0.163595]
[1728501468806,0.001634,61128.0,61125.0,0.001]
[1728501469211,0.001634,61128.0,61122.0,0.005]
[1728501469220,0.001634,61128.0,61127.0,0.163593]
[1728501469447,0.001634,61128.0,61127.0,0.32443064]
[1728501471272,0.001634,61128.0,61127.0,0.32743064]
[1728501471490,0.001634,61128.0,61127.0,0.32843064]
[1728501474805,0.001634,61128.0,61127.0,0.33649796]
[1728501485396,0.165225,61128.0,61127.0,0.004]
[1728501485868,0.1908536,61128.0,61127.0,0.004]
[1728501486086,0.2709536,61128.0,61127.0,0.001]
[1728501486296,0.46816519,61128.0,61127.0,0.001]
[1728501486505,0.46816519,61128.0,61127.0,0.003]
[1728501486962,0.30457419,61128.0,61120.0,0.00827104]
[1728501487189,0.30457419,61128.0,61118.0,0.24522827]
[1728501487190,0.2881626,61128.0,61118.0,0.24522827]
[1728501487423,0.2709536,61128.0,61121.0,0.327217]
[1728501487635,0.163595,61127.0,61123.0,0.163603]
[1728501487863,0.6081376,61128.0,61127.0,0.002]
[1728501488106,0.6081376,61128.0,61127.0,0.001]
[1728501488328,0.2809536,61128.0,61127.0,0.001]
[1728501489005,0.1173626,61128.0,61121.0,0.163608]
[1728501489236,0.163601,61125.0,61121.0,0.163608]
[1728501489449,0.163602,61124.0,61121.0,0.163608]
[1728501489663,0.327195,61126.0,61119.0,0.48806464]
[1728501489875,0.163599,61125.0,61122.0,0.163606]
[1728501490110,0.084734,61128.0,61123.0,0.327208]
[1728501490326,0.248326,61128.0,61125.0,0.163598]
[1728501490554,0.084734,61128.0,61125.0,0.163598]
[1728501490780,0.084734,61128.0,61123.0,0.327208]
[1728501490781,0.327188,61127.0,61123.0,0.163603]
[1728501491010,0.001,61125.0,61123.0,0.163603]
[1728501491665,0.001,61125.0,61122.0,0.16083764]
[1728501491884,0.163601,61124.0,61122.0,0.16083764]
[1728501492032,0.001,61125.0,61122.0,0.16083764]
[1728501492294,0.163602,61124.0,61122.0,0.16083764]
[1728501493161,0.327189,61127.0,61122.0,0.16083764]
[1728501493369,0.001634,61128.0,61123.0,0.329208]
[1728501493562,0.163594,61127.0,61124.0,0.163601]
[1728501493734,0.001634,61128.0,61123.0,0.163604]
[1728501493735,0.163597,61126.0,61123.0,0.163604]
[1728501494087,0.163599,61125.0,61122.0,0.33144364]
[1728501494306,0.163599,61125.0,61122.0,0.32844364]
[1728501494715,0.32719,61127.0,61123.0,0.002]
[1728501494973,0.32719,61127.0,61122.0,0.16483764]
[1728501495202,0.163599,61125.0,61122.0,0.32844264]
[1728501495854,0.163596,61126.0,61123.0,0.163603]
[1728501496106,0.1636,61125.0,61122.0,0.32444364]
[1728501496339,0.32719,61127.0,61123.0,0.004]
[1728501496602,0.001634,61128.0,61123.0,0.004]
[1728501496816,0.163599,61125.0,61123.0,0.004]
[1728501497053,0.163599,61125.0,61122.0,0.32744364]
[1728501497520,0.48663227,61123.0,61122.0,0.004]
[1728501497738,0.241404,61123.0,61122.0,0.004]
[1728501497980,0.291995,61123.0,61122.0,0.004]
[1728501498213,0.31762868,61123.0,61122.0,0.004]
[1728501498690,0.31962868,61123.0,61122.0,0.004]
[1728501498936,0.73069459,61123.0,61122.0,0.004]
[1728501499180,0.163625,61115.0,61112.0,0.000817]
[1728501499411,0.59405541,61115.0,61112.0,0.000817]
[1728501499643,0.64461325,61115.0,61112.0,0.000817]
[1728501499878,0.77725043,61115.0,61112.0,0.000817]
[1728501500101,0.75161325,61115.0,61112.0,0.000817]
[1728501501063,0.75161325,61115.0,61114.0,0.001818]
[1728501501298,0.76261325,61115.0,61114.0,0.002818]
[1728501501941,0.95101325,61115.0,61114.0,0.002818]
[1728501502431,1.11181986,61115.0,61114.0,0.002818]
[1728501502925,0.439731,61113.0,61112.0,0.000817]
[1728501503157,0.75112648,61113.0,61112.0,1e-06]
[1728501503391,0.75112648,61113.0,61103.0,0.24522827]
[1728501503392,0.539755,61104.0,61103.0,0.24522827]
[1728501503649,1.04415061,61104.0,61103.0,0.24522827]
[1728501503880,0.245974,61097.0,61096.0,0.32712827]
[1728501504099,0.60020441,61097.0,61096.0,0.32712827]
[1728501504355,0.60020441,61097.0,61096.0,0.0819]
[1728501504591,0.62584932,61097.0,61096.0,0.0819]
[1728501504839,1.08133305,61097.0,61096.0,0.0819]
[1728501505996,1.08133305,61097.0,61080.0,0.24604627]
[1728501505997,0.247317,61081.0,61080.0,0.24604627]
[1728501506240,0.60454741,61081.0,61080.0,0.24604627]
[1728501506489,0.60454741,61081.0,61080.0,0.000818]
[1728501506737,0.2759692,61081.0,61080.0,0.000818]
[1728501508098,0.46936197,61081.0,61080.0,0.000818]
[1728501508573,0.46736197,61081.0,61080.0,0.000818]
[1728501511479,0.258317,61081.0,61080.0,0.000818]
[1728501511721,0.176717,61081.0,61080.0,0.000818]
[1728501511978,0.163717,61081.0,61080.0,0.000818]
[1728501512462,0.01,61081.0,61080.0,0.000818]
[1728501512720,0.163717,61081.0,61080.0,0.000818]
[1728501512967,0.163717,61081.0,61080.0,0.001818]
[1728501512968,0.176717,61081.0,61080.0,0.001818]
[1728501513410,0.176717,61081.0,61080.0,0.000818]
[1728501513411,0.18936832,61081.0,61080.0,0.000818]
[1728501513914,0.19736832,61081.0,61080.0,0.000818]
[1728501514133,0.57810687,61081.0,61080.0,0.000818]
[1728501514336,0.57810687,61081.0,61080.0,0.003818]
[1728501514569,0.57810687,61081.0,61080.0,0.000818]
[1728501514789,0.58010687,61081.0,61080.0,0.000818]
[1728501515048,0.58010687,61081.0,61080.0,0.001818]
[1728501515049,0.69110687,61081.0,61080.0,0.001818]
[1728501515776,0.38676832,61081.0,61080.0,0.001818]
[1728501515998,0.28676832,61081.0,61080.0,0.001818]
[1728501516700,0.20836832,61081.0,61080.0,0.001818]
[1728501517137,0.04465132,61081.0,61080.0,0.001818]
[1728501517363,0.04465132,61081.0,61080.0,0.165537]
[1728501517873,0.03365132,61081.0,61080.0,0.000818]
[1728501518085,0.03665132,61081.0,61080.0,0.000818]
[1728501518313,0.03665132,61081.0,61080.0,0.164537]
[1728501518523,0.03665132,61081.0,61080.0,0.000818]
[1728501518737,0.03665132,61081.0,61080.0,0.164537]
[1728501518966,0.02865132,61081.0,61080.0,0.000818]
[1728501519190,0.02965132,61081.0,61080.0,0.000818]
[1728501519414,0.02665132,61081.0,61080.0,0.000818]
[1728501519653,0.163714,61082.0,61080.0,0.000818]
[1728501519654,0.163714,61082.0,61080.0,0.003818]
[1728501519883,0.163717,61081.0,61080.0,0.003818]
[1728501520096,0.163717,61081.0,61080.0,0.007818]
[1728501520333,0.32742,61084.0,61080.0,0.007818]
[1728501520538,0.327413,61085.0,61080.0,0.007818]
[1728501520754,0.24522827,61088.0,61080.0,0.007818]
[1728501520755,0.24522827,61088.0,61080.0,0.171536]
[1728501520978,0.163713,61083.0,61080.0,0.171536]
[1728501521166,0.163713,61083.0,61080.0,0.171537]
[1728501521419,0.163717,61081.0,61080.0,0.007818]
[1728501521636,0.327413,61085.0,61080.0,0.007818]
[1728501521860,0.163712,61083.0,61080.0,0.167536]
[1728501522072,0.163713,61083.0,61080.0,0.003818]
[1728501522296,0.163713,61083.0,61080.0,0.000818]
[1728501522510,0.163717,61081.0,61080.0,0.003818]
[1728501522986,0.163712,61083.0,61080.0,0.004818]
[1728501523213,0.163712,61083.0,61080.0,0.171537]
[1728501523490,0.327416,61085.0,61080.0,0.000818]
[1728501523719,0.24522827,61095.0,61080.0,0.16165564]
[1728501523939,0.24522827,61095.0,61085.0,0.163703]
[1728501523940,0.40892727,61088.0,61085.0,0.163703]
[1728501524159,0.163699,61088.0,61083.0,0.327421]
[1728501524578,0.1637,61088.0,61085.0,0.163705]
[1728501524820,0.163711,61083.0,61080.0,0.51077364]
[1728501525073,0.163717,61081.0,61080.0,0.004818]
[1728501525355,0.163717,61081.0,61080.0,0.000818]
[1728501526029,0.163717,61081.0,61080.0,0.003818]
[1728501526470,0.163717,61081.0,61080.0,0.004818]
[1728501526693,0.163717,61081.0,61080.0,0.005818]
[1728501528547,0.163717,61081.0,61080.0,0.001818]
[1728501528791,0.163717,61081.0,61080.0,0.003818]
[1728501530672,0.001636,61096.0,61080.0,0.003818]
[1728501530673,0.0776,61091.0,61080.0,0.003818]
[1728501530891,0.327416,61085.0,61080.0,0.003818]
[1728501531146,0.163712,61083.0,61080.0,0.167536]
[1728501531383,0.327416,61085.0,61080.0,0.167536]
[1728501531384,0.163714,61082.0,61080.0,0.003818]
[1728501531600,0.163717,61081.0,61080.0,0.003818]
[1728501531816,0.163717,61081.0,61080.0,0.001818]
[1728501532933,0.163717,61081.0,61080.0,0.002818]
[1728501533356,0.18936722,61081.0,61080.0,0.002818]
[1728501533776,0.18936722,61081.0,61080.0,0.003818]
[1728501535501,0.18936722,61081.0,61080.0,0.167537]
[1728501535502,0.02565022,61081.0,61080.0,0.167537]
[1728501535741,0.197136,61096.0,61080.0,0.167536]
[1728501535742,0.163711,61083.0,61080.0,0.167536]
[1728501535989,0.24522827,61088.0,61080.0,0.167536]
[1728501535990,0.02564898,61084.0,61082.0,0.163714]
[1728501536478,0.02564898,61084.0,61080.0,0.008818]
[1728501536479,0.163717,61081.0,61080.0,0.008818]
[1728501536722,0.163717,61081.0,61080.0,0.004818]
[1728501537208,0.163717,61081.0,61080.0,0.008818]
[1728501537457,0.163717,61081.0,61080.0,0.004818]
[1728501537699,0.164717,61081.0,61080.0,0.011818]
[1728501538194,0.164717,61081.0,61080.0,0.007818]
[1728501538899,0.001,61081.0,61080.0,0.007818]
[1728501539118,0.001,61081.0,61080.0,0.171537]
[1728501539641,0.002,61081.0,61080.0,0.179537]
[1728501539871,0.002,61081.0,61080.0,0.34037464]
[1728501540628,0.002,61081.0,61080.0,0.015818]
[1728501540629,0.165717,61081.0,61080.0,0.015818]
[1728501543252,0.19136638,61081.0,61080.0,0.015818]
[1728501544464,0.24194358,61081.0,61080.0,0.015818]
[1728501545382,0.37799202,61081.0,61080.0,0.015818]
[1728501545596,0.56938479,61081.0,61080.0,0.015818]
[1728501547651,0.67856462,61081.0,61080.0,0.015818]
[1728501547894,0.43333635,61081.0,61080.0,0.015818]
[1728501550275,0.2162942,61081.0,61080.0,0.015818]
[1728501550492,0.002,61081.0,61080.0,0.015818]
[1728501550944,0.002,61081.0,61080.0,0.34037464]